[Event "Late-Titled-Tuesday-Blitz-March-12-2024"]
[Site "Chess.com"]
[Date "2024.03.12"]
[Round "11"]
[White "Vladimir_Zakhartsov"]
[Black "Kosak12"]
[Result "0-1"]
[WhiteElo "2917"]
[BlackElo "2792"]
[TimeControl "180+1"]
[EndTime "16:04:35 PDT"]
[Termination "Kosak12 won by resignation"]

1. d4 {[%clk 0:02:56.9]} 1... b5 {[%clk 0:02:50.5]} 2. e4 {[%clk 0:02:56.3]}
2... Bb7 {[%clk 0:02:50.5]} 3. Bd3 {[%clk 0:02:56.2]} 3... e6 {[%clk 0:02:49.1]}
4. Qe2 {[%clk 0:02:55.5]} 4... a6 {[%clk 0:02:49]} 5. Nf3 {[%clk 0:02:55.4]}
5... Nf6 {[%clk 0:02:48.3]} 6. O-O {[%clk 0:02:55.2]} 6... Be7 {[%clk
0:02:47.2]} 7. a4 {[%clk 0:02:47.2]} 7... b4 {[%clk 0:02:46.5]} 8. a5 {[%clk
0:02:46.1]} 8... d5 {[%clk 0:02:46.2]} 9. e5 {[%clk 0:02:39.4]} 9... Nfd7 {[%clk
0:02:46]} 10. c3 {[%clk 0:02:37.3]} 10... c5 {[%clk 0:02:45.8]} 11. Nbd2 {[%clk
0:02:30.3]} 11... Nc6 {[%clk 0:02:45.3]} 12. g3 {[%clk 0:02:18.1]} 12... cxd4
{[%clk 0:02:37.5]} 13. cxd4 {[%clk 0:02:18]} 13... Nxa5 {[%clk 0:02:37.7]} 14.
h4 {[%clk 0:02:17.4]} 14... Qb6 {[%clk 0:02:36.6]} 15. Rd1 {[%clk 0:02:13.9]}
15... Nc6 {[%clk 0:02:32]} 16. Nf1 {[%clk 0:02:08.2]} 16... Nxd4 {[%clk
0:02:13.3]} 17. Nxd4 {[%clk 0:02:03.7]} 17... Qxd4 {[%clk 0:02:14.2]} 18. Bb5
{[%clk 0:01:48.8]} 18... Qb6 {[%clk 0:02:09.2]} 19. Bxd7+ {[%clk 0:01:47.8]}
19... Kxd7 {[%clk 0:02:10.1]} 20. Be3 {[%clk 0:01:48]} 20... Qb5 {[%clk
0:02:05]} 21. Qg4 {[%clk 0:01:46.9]} 21... g6 {[%clk 0:02:00.6]} 22. Nd2 {[%clk
0:01:46.7]} 22... Rhc8 {[%clk 0:01:58.8]} 23. Nb3 {[%clk 0:01:46.5]} 23... Rc4
{[%clk 0:01:18.9]} 24. Qf3 {[%clk 0:01:41.5]} 24... Ke8 {[%clk 0:01:17.3]} 25.
Nd4 {[%clk 0:01:29]} 25... Qd7 {[%clk 0:01:17.1]} 26. h5 {[%clk 0:01:29.1]}
26... Rac8 {[%clk 0:01:11.4]} 27. hxg6 {[%clk 0:01:25.6]} 27... hxg6 {[%clk
0:01:12.3]} 28. Kg2 {[%clk 0:01:25.8]} 28... Bc5 {[%clk 0:00:58.7]} 29. Rh1
{[%clk 0:01:25.2]} 29... Kd8 {[%clk 0:00:57.6]} 30. Rh7 {[%clk 0:01:16.2]} 30...
Bxd4 {[%clk 0:00:07.5]} 31. Bg5+ {[%clk 0:01:01.1]} 31... Kc7 {[%clk 0:00:06.2]}
32. Rxf7 {[%clk 0:01:01.2]} 32... Qxf7 {[%clk 0:00:05.2]} 33. Qxf7+ {[%clk
0:01:00.5]} 33... Kb8 {[%clk 0:00:06.1]} 34. Qxe6 {[%clk 0:00:56.5]} 34... Bxb2
{[%clk 0:00:06]} 35. Rb1 {[%clk 0:00:39.6]} 35... Bc3 {[%clk 0:00:04.6]} 36.
Qd6+ {[%clk 0:00:37.5]} 36... Ka8 {[%clk 0:00:04.6]} 37. e6 {[%clk 0:00:37.8]}
37... d4+ {[%clk 0:00:05]} 38. Kg1 {[%clk 0:00:36.6]} 38... Rh8 {[%clk
0:00:04.8]} 39. Bh4 {[%clk 0:00:35.4]} 39... Rc6 {[%clk 0:00:03]} 40. Qd7 {[%clk
0:00:31.2]} 40... g5 {[%clk 0:00:03.3]} 41. e7 {[%clk 0:00:30.9]} 41... Rcc8
{[%clk 0:00:03.5]} 42. Kh2 {[%clk 0:00:12.7]} 42... gxh4 {[%clk 0:00:03.8]} 43.
g4 {[%clk 0:00:12.9]} 43... Rce8 {[%clk 0:00:03.7]} 44. f4 {[%clk 0:00:11.8]}
44... h3 {[%clk 0:00:03.3]} 45. f5 {[%clk 0:00:11.7]} 45... d3 {[%clk
0:00:03.7]} 46. f6 {[%clk 0:00:07.3]} 46... Be5+ {[%clk 0:00:03.8]} 47. Kg1
{[%clk 0:00:07.8]} 47... h2+ {[%clk 0:00:04.2]} 48. Kf2 {[%clk 0:00:08.4]} 48...
Bxf6 {[%clk 0:00:04.8]} 49. Rxb4 {[%clk 0:00:05.3]} 49... h1=Q {[%clk
0:00:05.1]} 50. Rxb7 {[%clk 0:00:03.9]} 50... Qxb7 {[%clk 0:00:06]} 0-1

[Event "Late-Titled-Tuesday-Blitz-March-12-2024"]
[Site "Chess.com"]
[Date "2024.03.12"]
[Round "11"]
[White "NovakRatko"]
[Black "GWR2024"]
[Result "1-0"]
[WhiteElo "2406"]
[BlackElo "2189"]
[TimeControl "180+1"]
[EndTime "16:04:36 PDT"]
[Termination "NovakRatko won by checkmate"]

1. d4 {[%clk 0:02:43.7]} 1... f5 {[%clk 0:02:57.6]} 2. c4 {[%clk 0:02:43.6]}
2... Nf6 {[%clk 0:02:56.7]} 3. Nc3 {[%clk 0:02:43.5]} 3... g6 {[%clk 0:02:56.9]}
4. f3 {[%clk 0:02:44.2]} 4... Bg7 {[%clk 0:02:56.5]} 5. e4 {[%clk 0:02:44.7]}
5... fxe4 {[%clk 0:02:55.3]} 6. fxe4 {[%clk 0:02:44.8]} 6... d6 {[%clk
0:02:55.9]} 7. Bg5 {[%clk 0:02:45]} 7... O-O {[%clk 0:02:54.6]} 8. Nf3 {[%clk
0:02:45]} 8... h6 {[%clk 0:02:49]} 9. Bh4 {[%clk 0:02:44.5]} 9... g5 {[%clk
0:02:48]} 10. Bg3 {[%clk 0:02:44.5]} 10... Nh5 {[%clk 0:02:45.8]} 11. Bf2 {[%clk
0:02:44]} 11... e5 {[%clk 0:02:39.3]} 12. dxe5 {[%clk 0:02:36.9]} 12... dxe5
{[%clk 0:02:36.5]} 13. Qb3 {[%clk 0:02:36]} 13... Nc6 {[%clk 0:02:33]} 14. Nd5
{[%clk 0:02:32.2]} 14... g4 {[%clk 0:02:26.5]} 15. Bh4 {[%clk 0:02:26.7]} 15...
Qe8 {[%clk 0:02:08.4]} 16. Nxc7 {[%clk 0:02:21.7]} 16... Qf7 {[%clk 0:02:05.1]}
17. Nxa8 {[%clk 0:02:19.2]} 17... gxf3 {[%clk 0:02:04.9]} 18. gxf3 {[%clk
0:02:18.3]} 18... Nd4 {[%clk 0:01:59.1]} 19. Qe3 {[%clk 0:01:26.9]} 19... Nxf3+
{[%clk 0:01:58]} 20. Kd1 {[%clk 0:01:22.6]} 20... Nxh4 {[%clk 0:01:57]} 21. Be2
{[%clk 0:01:21]} 21... Nf4 {[%clk 0:01:50.7]} 22. Kc2 {[%clk 0:00:59.4]} 22...
Nxe2 {[%clk 0:01:35.8]} 23. Qxe2 {[%clk 0:00:59]} 23... Nf3 {[%clk 0:01:32.3]}
24. Kc3 {[%clk 0:00:54.3]} 24... Be6 {[%clk 0:01:24.7]} 25. Raf1 {[%clk
0:00:48.1]} 25... Bg4 {[%clk 0:01:20.8]} 26. Qe3 {[%clk 0:00:37.4]} 26... Rxa8
{[%clk 0:01:18.5]} 27. Rhg1 {[%clk 0:00:37.3]} 27... Rc8 {[%clk 0:01:16.5]} 28.
b3 {[%clk 0:00:33.5]} 28... Bh5 {[%clk 0:01:08.7]} 29. Qxh6 {[%clk 0:00:33.1]}
29... b5 {[%clk 0:00:57.3]} 30. Rxg7+ {[%clk 0:00:28.1]} 30... Qxg7 {[%clk
0:00:53.6]} 31. Qxh5 {[%clk 0:00:28.3]} 31... bxc4 {[%clk 0:00:25.8]} 32. Qxf3
{[%clk 0:00:13.3]} 32... cxb3+ {[%clk 0:00:25.5]} 33. Kb2 {[%clk 0:00:12.2]}
33... Rc2+ {[%clk 0:00:17.6]} 34. Kxb3 {[%clk 0:00:12.2]} 34... Rc8 {[%clk
0:00:13.9]} 35. Kb2 {[%clk 0:00:09.9]} 35... Rf8 {[%clk 0:00:08.8]} 36. Qxf8+
{[%clk 0:00:09.1]} 36... Qxf8 {[%clk 0:00:08.6]} 37. Rxf8+ {[%clk 0:00:09.9]}
37... Kxf8 {[%clk 0:00:08.7]} 38. Kb3 {[%clk 0:00:10.7]} 38... Ke7 {[%clk
0:00:08]} 39. Kc4 {[%clk 0:00:11.6]} 39... Ke6 {[%clk 0:00:08.2]} 40. a4 {[%clk
0:00:11.7]} 40... Kd6 {[%clk 0:00:05.9]} 41. h4 {[%clk 0:00:11.3]} 41... Ke6
{[%clk 0:00:06]} 42. Kc5 {[%clk 0:00:11.9]} 42... Kf6 {[%clk 0:00:05.5]} 43. Kd5
{[%clk 0:00:12.2]} 43... a5 {[%clk 0:00:04.6]} 44. Kd6 {[%clk 0:00:11.1]} 44...
Kg6 {[%clk 0:00:04]} 45. Kxe5 {[%clk 0:00:11.5]} 45... Kh5 {[%clk 0:00:04.9]}
46. Kd5 {[%clk 0:00:11.6]} 46... Kxh4 {[%clk 0:00:05.8]} 47. e5 {[%clk
0:00:12.2]} 47... Kg4 {[%clk 0:00:05.8]} 48. e6 {[%clk 0:00:12.8]} 48... Kf3
{[%clk 0:00:06.7]} 49. e7 {[%clk 0:00:12.8]} 49... Ke3 {[%clk 0:00:07.6]} 50.
e8=Q+ {[%clk 0:00:13.1]} 50... Kd3 {[%clk 0:00:08.5]} 51. Qb5+ {[%clk
0:00:13.6]} 51... Kc3 {[%clk 0:00:09.4]} 52. Qxa5+ {[%clk 0:00:14.1]} 52... Kd3
{[%clk 0:00:09.6]} 53. Qb5+ {[%clk 0:00:14.5]} 53... Kc2 {[%clk 0:00:10.5]} 54.
a5 {[%clk 0:00:15.2]} 54... Kc1 {[%clk 0:00:10.9]} 55. Qe2 {[%clk 0:00:14.9]}
55... Kb1 {[%clk 0:00:10.9]} 56. Kc4 {[%clk 0:00:15]} 56... Ka1 {[%clk
0:00:11.8]} 57. Kc3 {[%clk 0:00:14.4]} 57... Kb1 {[%clk 0:00:12.7]} 58. Qb2#
{[%clk 0:00:14.2]} 1-0

[Event "Late-Titled-Tuesday-Blitz-March-12-2024"]
[Site "Chess.com"]
[Date "2024.03.12"]
[Round "11"]
[White "Qingdom"]
[Black "ShahMatKanal"]
[Result "0-1"]
[WhiteElo "2274"]
[BlackElo "2479"]
[TimeControl "180+1"]
[EndTime "16:04:38 PDT"]
[Termination "ShahMatKanal won by checkmate"]

1. d4 {[%clk 0:03:00.9]} 1... d5 {[%clk 0:02:49.4]} 2. c4 {[%clk 0:03:00.3]}
2... c5 {[%clk 0:02:46.6]} 3. cxd5 {[%clk 0:02:59.7]} 3... cxd4 {[%clk
0:02:44.3]} 4. Nf3 {[%clk 0:02:59.1]} 4... Nf6 {[%clk 0:02:39.9]} 5. Qxd4 {[%clk
0:02:55.8]} 5... Qxd5 {[%clk 0:02:36.9]} 6. Nc3 {[%clk 0:02:55.8]} 6... Qxd4
{[%clk 0:02:35.3]} 7. Nxd4 {[%clk 0:02:55.8]} 7... a6 {[%clk 0:02:32.4]} 8. e4
{[%clk 0:02:53.7]} 8... e5 {[%clk 0:02:30.9]} 9. Nf5 {[%clk 0:02:50.5]} 9...
Nxe4 {[%clk 0:02:26.6]} 10. Nxg7+ {[%clk 0:02:50.2]} 10... Bxg7 {[%clk
0:02:27.5]} 11. Nxe4 {[%clk 0:02:50.1]} 11... O-O {[%clk 0:02:25.7]} 12. Bc4
{[%clk 0:02:46]} 12... b5 {[%clk 0:02:17.3]} 13. Bd5 {[%clk 0:02:45.2]} 13...
Ra7 {[%clk 0:02:17.7]} 14. Nd6 {[%clk 0:02:43.9]} 14... Rd7 {[%clk 0:01:45.8]}
15. Nxc8 {[%clk 0:02:42.6]} 15... Rxc8 {[%clk 0:01:46.7]} 16. Be4 {[%clk
0:02:37.5]} 16... Rc4 {[%clk 0:01:28.9]} 17. f3 {[%clk 0:02:36]} 17... Rcd4
{[%clk 0:00:32.7]} 18. Be3 {[%clk 0:02:31.6]} 18... R4d6 {[%clk 0:00:31.8]} 19.
Ke2 {[%clk 0:02:30.3]} 19... Nc6 {[%clk 0:00:28.8]} 20. Rhd1 {[%clk 0:02:29.8]}
20... Nd4+ {[%clk 0:00:28.4]} 21. Bxd4 {[%clk 0:02:17.6]} 21... exd4 {[%clk
0:00:28.8]} 22. Kd3 {[%clk 0:02:15.4]} 22... Bh6 {[%clk 0:00:27.9]} 23. g3
{[%clk 0:02:10.5]} 23... Be3 {[%clk 0:00:27.2]} 24. a4 {[%clk 0:02:02.3]} 24...
b4 {[%clk 0:00:26.5]} 25. a5 {[%clk 0:02:02.1]} 25... Rc7 {[%clk 0:00:26.1]} 26.
Ra4 {[%clk 0:02:01.4]} 26... b3 {[%clk 0:00:25.2]} 27. Rb4 {[%clk 0:02:00]}
27... Rc2 {[%clk 0:00:22.4]} 28. Rxb3 {[%clk 0:01:56.7]} 28... Rxh2 {[%clk
0:00:22]} 29. Rb6 {[%clk 0:01:52.6]} 29... Rd8 {[%clk 0:00:06.3]} 30. b4 {[%clk
0:01:47.6]} 30... Rc8 {[%clk 0:00:05.9]} 31. Bd5 {[%clk 0:01:45.9]} 31... Rc3+
{[%clk 0:00:03.6]} 32. Ke4 {[%clk 0:01:45.9]} 32... Kg7 {[%clk 0:00:04.5]} 33.
Rxa6 {[%clk 0:01:44.9]} 33... Re2 {[%clk 0:00:03.9]} 34. Kf5 {[%clk 0:01:43.8]}
34... Bh6 {[%clk 0:00:03.4]} 35. Ra7 {[%clk 0:01:42.5]} 35... Ree3 {[%clk
0:00:02.6]} 36. Rxf7+ {[%clk 0:01:41.7]} 36... Kg8 {[%clk 0:00:02.3]} 37. Rc7+
{[%clk 0:01:39]} 37... Kf8 {[%clk 0:00:01.6]} 38. Rxc3 {[%clk 0:01:38.6]} 38...
dxc3 {[%clk 0:00:02.5]} 39. Be4 {[%clk 0:01:37.3]} 39... Re2 {[%clk 0:00:01.8]}
40. Rd8+ {[%clk 0:01:36.1]} 40... Ke7 {[%clk 0:00:01.7]} 41. Rc8 {[%clk
0:01:36.4]} 41... Bd2 {[%clk 0:00:01.3]} 42. b5 {[%clk 0:01:35]} 42... Kd7
{[%clk 0:00:01.7]} 43. Rc4 {[%clk 0:01:33.7]} 43... Re1 {[%clk 0:00:01.9]} 44.
a6 {[%clk 0:01:33.1]} 44... Ra1 {[%clk 0:00:01.7]} 45. g4 {[%clk 0:01:30]} 45...
Ra5 {[%clk 0:00:01.9]} 46. Bc6+ {[%clk 0:01:28.8]} 46... Kc7 {[%clk 0:00:02.2]}
47. f4 {[%clk 0:01:27.5]} 47... Kb6 {[%clk 0:00:02.4]} 48. g5 {[%clk 0:01:27.4]}
48... Ra2 {[%clk 0:00:02]} 49. Kg4 {[%clk 0:01:26]} 49... c2 {[%clk 0:00:01.4]}
50. f5 {[%clk 0:01:23.8]} 50... c1=Q {[%clk 0:00:01.5]} 51. Rxc1 {[%clk
0:01:23.4]} 51... Bxc1 {[%clk 0:00:02.4]} 52. g6 {[%clk 0:01:23.9]} 52... hxg6
{[%clk 0:00:01.9]} 53. fxg6 {[%clk 0:01:24.2]} 53... Bb2 {[%clk 0:00:01.8]} 54.
Kf5 {[%clk 0:01:23.4]} 54... Ra1 {[%clk 0:00:02.3]} 55. Ke6 {[%clk 0:01:21.9]}
55... Rf1 {[%clk 0:00:02.7]} 56. Ke7 {[%clk 0:01:20.4]} 56... Rf6 {[%clk
0:00:02.3]} 57. g7 {[%clk 0:01:20.3]} 57... Rg6 {[%clk 0:00:02.1]} 58. Kf8
{[%clk 0:01:20.2]} 58... Rxg7 {[%clk 0:00:02.4]} 59. a7 {[%clk 0:01:19.9]} 59...
Rxa7 {[%clk 0:00:02.1]} 60. Ke8 {[%clk 0:01:19.5]} 60... Rc7 {[%clk 0:00:03]}
61. Kd8 {[%clk 0:01:19.8]} 61... Ba3 {[%clk 0:00:03.9]} 62. Ke8 {[%clk
0:01:19.9]} 62... Bc5 {[%clk 0:00:04.8]} 63. Kd8 {[%clk 0:01:20.4]} 63... Bd4
{[%clk 0:00:05.7]} 64. Ke8 {[%clk 0:01:21]} 64... Be3 {[%clk 0:00:06.6]} 65. Kd8
{[%clk 0:01:21.6]} 65... Bf2 {[%clk 0:00:07.5]} 66. Ke8 {[%clk 0:01:22.3]} 66...
Bg1 {[%clk 0:00:08]} 67. Kd8 {[%clk 0:01:23.2]} 67... Rh7 {[%clk 0:00:07.3]} 68.
Ke8 {[%clk 0:01:22.8]} 68... Bh2 {[%clk 0:00:07.4]} 69. Kd8 {[%clk 0:01:23]}
69... Bc7+ {[%clk 0:00:07.8]} 70. Ke8 {[%clk 0:01:23.5]} 70... Kc5 {[%clk
0:00:08.3]} 71. Kf8 {[%clk 0:01:24]} 71... Bb6 {[%clk 0:00:08.3]} 72. Kg8 {[%clk
0:01:24.3]} 72... Rc7 {[%clk 0:00:08.9]} 73. Kf8 {[%clk 0:01:24.6]} 73... Kd6
{[%clk 0:00:09.8]} 74. Ke8 {[%clk 0:01:25.1]} 74... Ke6 {[%clk 0:00:10.2]} 75.
Kf8 {[%clk 0:01:25.7]} 75... Bc5+ {[%clk 0:00:10.2]} 76. Kg8 {[%clk 0:01:26]}
76... Kf6 {[%clk 0:00:10.6]} 77. Kh8 {[%clk 0:01:26]} 77... Kg6 {[%clk
0:00:10.1]} 78. Be4+ {[%clk 0:01:26.1]} 78... Kh6 {[%clk 0:00:10.4]} 79. Kg8
{[%clk 0:01:25.4]} 79... Re7 {[%clk 0:00:07.3]} 80. Bc6 {[%clk 0:01:23.9]} 80...
Kg6 {[%clk 0:00:06.4]} 81. Kh8 {[%clk 0:01:20.9]} 81... Rg7 {[%clk 0:00:03.3]}
82. b6 {[%clk 0:01:20.3]} 82... Bxb6 {[%clk 0:00:02.8]} 83. Be4+ {[%clk
0:01:20.3]} 83... Kh6 {[%clk 0:00:03.2]} 84. Bd5 {[%clk 0:01:18.4]} 84... Bd4
{[%clk 0:00:02.9]} 85. Be4 {[%clk 0:01:18]} 85... Rg6# {[%clk 0:00:02.8]} 0-1

[Event "Late-Titled-Tuesday-Blitz-March-12-2024"]
[Site "Chess.com"]
[Date "2024.03.12"]
[Round "11"]
[White "Mariia89"]
[Black "jcmesafischer"]
[Result "0-1"]
[WhiteElo "2258"]
[BlackElo "2362"]
[TimeControl "180+1"]
[EndTime "16:04:40 PDT"]
[Termination "jcmesafischer won on time"]

1. d4 {[%clk 0:02:59.9]} 1... Nf6 {[%clk 0:02:55.9]} 2. Nf3 {[%clk 0:03:00.2]}
2... d5 {[%clk 0:02:49.7]} 3. Bg5 {[%clk 0:02:59.5]} 3... Ne4 {[%clk 0:02:42.7]}
4. Bh4 {[%clk 0:02:59.6]} 4... c5 {[%clk 0:02:42.3]} 5. e3 {[%clk 0:02:56.5]}
5... Qb6 {[%clk 0:02:41.4]} 6. Qc1 {[%clk 0:02:53]} 6... Nc6 {[%clk 0:02:40.2]}
7. c3 {[%clk 0:02:52.9]} 7... Bf5 {[%clk 0:02:35.7]} 8. Nbd2 {[%clk 0:02:52.6]}
8... Rc8 {[%clk 0:02:32.1]} 9. Nxe4 {[%clk 0:02:51.8]} 9... dxe4 {[%clk
0:02:29.8]} 10. Nd2 {[%clk 0:02:52]} 10... cxd4 {[%clk 0:02:29]} 11. exd4 {[%clk
0:02:31.5]} 11... e6 {[%clk 0:02:00.8]} 12. Nc4 {[%clk 0:02:15.2]} 12... Qc7
{[%clk 0:02:00.5]} 13. Bg3 {[%clk 0:02:07.7]} 13... Qd8 {[%clk 0:02:00.2]} 14.
Qd1 {[%clk 0:01:46.2]} 14... Be7 {[%clk 0:01:55.6]} 15. Be2 {[%clk 0:01:40.3]}
15... O-O {[%clk 0:01:54.1]} 16. O-O {[%clk 0:01:39.6]} 16... Bg6 {[%clk
0:01:54.5]} 17. Bh5 {[%clk 0:01:24.2]} 17... Qd5 {[%clk 0:01:35]} 18. Bxg6
{[%clk 0:01:23.6]} 18... hxg6 {[%clk 0:01:34.7]} 19. Ne3 {[%clk 0:01:24.1]}
19... Qg5 {[%clk 0:01:11.5]} 20. h4 {[%clk 0:01:20.7]} 20... Qh6 {[%clk
0:01:09.5]} 21. Ng4 {[%clk 0:01:14]} 21... Qh5 {[%clk 0:01:08.5]} 22. Ne5 {[%clk
0:01:11.9]} 22... Nxe5 {[%clk 0:01:03.1]} 23. Qxh5 {[%clk 0:01:09.3]} 23... gxh5
{[%clk 0:01:04]} 24. dxe5 {[%clk 0:01:09.3]} 24... b5 {[%clk 0:01:01.2]} 25.
Rfe1 {[%clk 0:01:01.8]} 25... Rc4 {[%clk 0:00:59.6]} 26. Re3 {[%clk 0:00:49.8]}
26... b4 {[%clk 0:00:50.4]} 27. Rae1 {[%clk 0:00:44.9]} 27... bxc3 {[%clk
0:00:49.8]} 28. bxc3 {[%clk 0:00:45.1]} 28... Rfc8 {[%clk 0:00:47.7]} 29. Rxe4
{[%clk 0:00:45.5]} 29... Rxc3 {[%clk 0:00:47.7]} 30. Ra4 {[%clk 0:00:43.6]}
30... Bc5 {[%clk 0:00:25]} 31. Re2 {[%clk 0:00:39.2]} 31... Rxg3 {[%clk
0:00:23.6]} 32. Rc4 {[%clk 0:00:33]} 32... Rg4 {[%clk 0:00:18.3]} 33. Rcc2
{[%clk 0:00:28.3]} 33... Rb4 {[%clk 0:00:15.2]} 34. Kf1 {[%clk 0:00:20.5]} 34...
Rxh4 {[%clk 0:00:14.6]} 35. g3 {[%clk 0:00:19.9]} 35... Rb4 {[%clk 0:00:14.3]}
36. Kg1 {[%clk 0:00:20.8]} 36... Rb5 {[%clk 0:00:11.9]} 37. Kg2 {[%clk
0:00:20.8]} 37... Rd8 {[%clk 0:00:12.1]} 38. Re4 {[%clk 0:00:19.6]} 38... Be7
{[%clk 0:00:11.5]} 39. Rc7 {[%clk 0:00:16]} 39... Bg5 {[%clk 0:00:11.7]} 40.
Rxa7 {[%clk 0:00:15.2]} 40... Rb2 {[%clk 0:00:11.6]} 41. Re1 {[%clk 0:00:07]}
41... Rdd2 {[%clk 0:00:11.1]} 42. Rf1 {[%clk 0:00:07.4]} 42... Be3 {[%clk
0:00:08.4]} 43. Ra8+ {[%clk 0:00:07.4]} 43... Kh7 {[%clk 0:00:09]} 44. Kf3
{[%clk 0:00:07.6]} 44... Rxf2+ {[%clk 0:00:08.2]} 45. Rxf2 {[%clk 0:00:06.6]}
45... Bxf2 {[%clk 0:00:09.1]} 46. a4 {[%clk 0:00:06]} 46... g5 {[%clk 0:00:09]}
47. g4 {[%clk 0:00:03.5]} 47... h4 {[%clk 0:00:07.5]} 0-1

[Event "Late-Titled-Tuesday-Blitz-March-12-2024"]
[Site "Chess.com"]
[Date "2024.03.12"]
[Round "11"]
[White "Rud_Makarian"]
[Black "Hikaru"]
[Result "1/2-1/2"]
[WhiteElo "3058"]
[BlackElo "3242"]
[TimeControl "180+1"]
[EndTime "16:04:45 PDT"]
[Termination "Game drawn by repetition"]

1. d4 {[%clk 0:03:00.9]} 1... g6 {[%clk 0:02:58.4]} 2. c4 {[%clk 0:03:00.9]}
2... Bg7 {[%clk 0:02:53.1]} 3. Nc3 {[%clk 0:02:59.2]} 3... d6 {[%clk 0:02:52.3]}
4. Nf3 {[%clk 0:02:59.2]} 4... Nd7 {[%clk 0:02:48.7]} 5. e4 {[%clk 0:02:56.5]}
5... e5 {[%clk 0:02:48.4]} 6. d5 {[%clk 0:02:54.9]} 6... Ne7 {[%clk 0:02:48.1]}
7. h4 {[%clk 0:02:54.2]} 7... h6 {[%clk 0:02:48.4]} 8. h5 {[%clk 0:02:54]} 8...
Nc5 {[%clk 0:02:41.2]} 9. hxg6 {[%clk 0:02:50.8]} 9... fxg6 {[%clk 0:02:41.3]}
10. Be2 {[%clk 0:02:48.9]} 10... a5 {[%clk 0:02:41.1]} 11. Be3 {[%clk 0:02:48]}
11... Bg4 {[%clk 0:02:30.2]} 12. Qd2 {[%clk 0:02:42.9]} 12... Ng8 {[%clk
0:02:17]} 13. O-O-O {[%clk 0:02:27.6]} 13... Bxf3 {[%clk 0:02:06.9]} 14. Bxf3
{[%clk 0:02:26.7]} 14... b6 {[%clk 0:01:53.4]} 15. Kc2 {[%clk 0:02:15]} 15...
Qd7 {[%clk 0:01:48.8]} 16. Rh4 {[%clk 0:01:43]} 16... h5 {[%clk 0:01:45.1]} 17.
Rdh1 {[%clk 0:01:38.6]} 17... Bh6 {[%clk 0:01:28.5]} 18. g4 {[%clk 0:01:35.1]}
18... Bxe3 {[%clk 0:01:26.4]} 19. Qxe3 {[%clk 0:01:35.5]} 19... Nf6 {[%clk
0:00:36.1]} 20. gxh5 {[%clk 0:01:23.8]} 20... gxh5 {[%clk 0:00:35.5]} 21. Bxh5+
{[%clk 0:01:11.1]} 21... Nxh5 {[%clk 0:00:29.6]} 22. Rxh5 {[%clk 0:01:12]} 22...
Rxh5 {[%clk 0:00:30]} 23. Rxh5 {[%clk 0:01:12.9]} 23... O-O-O {[%clk 0:00:30.8]}
24. Qh3 {[%clk 0:01:08.2]} 24... Qxh3 {[%clk 0:00:27]} 25. Rxh3 {[%clk
0:01:09.1]} 25... Rf8 {[%clk 0:00:27.4]} 26. f3 {[%clk 0:01:07.9]} 26... Rg8
{[%clk 0:00:27.2]} 27. Rh2 {[%clk 0:01:07.4]} 27... Rg1 {[%clk 0:00:26.1]} 28.
Nb5 {[%clk 0:00:58.9]} 28... Rg7 {[%clk 0:00:23]} 29. b3 {[%clk 0:00:54.5]}
29... Rf7 {[%clk 0:00:22.1]} 30. Rh3 {[%clk 0:00:55.1]} 30... Rg7 {[%clk
0:00:22.8]} 31. Kc3 {[%clk 0:00:49.4]} 31... Na6 {[%clk 0:00:20.6]} 32. a3
{[%clk 0:00:40.2]} 32... Nc5 {[%clk 0:00:18.6]} 33. b4 {[%clk 0:00:38.9]} 33...
axb4+ {[%clk 0:00:19.5]} 34. axb4 {[%clk 0:00:39.8]} 34... Nd7 {[%clk
0:00:19.9]} 35. Na7+ {[%clk 0:00:36]} 35... Kb7 {[%clk 0:00:20]} 36. Nc6 {[%clk
0:00:36.6]} 36... Rg8 {[%clk 0:00:19.5]} 37. Rh7 {[%clk 0:00:31.9]} 37... Nb8
{[%clk 0:00:18.8]} 38. Nxb8 {[%clk 0:00:22.1]} 38... Kxb8 {[%clk 0:00:19.7]} 39.
c5 {[%clk 0:00:20.4]} 39... b5 {[%clk 0:00:19.9]} 40. Rf7 {[%clk 0:00:13.4]}
40... Rg1 {[%clk 0:00:15.4]} 41. cxd6 {[%clk 0:00:11.5]} 41... cxd6 {[%clk
0:00:15.8]} 42. Kd3 {[%clk 0:00:10.2]} 42... Kc8 {[%clk 0:00:12]} 43. Rf6 {[%clk
0:00:03.5]} 43... Kc7 {[%clk 0:00:12.5]} 44. Rf7+ {[%clk 0:00:03.8]} 44... Kc8
{[%clk 0:00:13.2]} 45. Rf8+ {[%clk 0:00:04]} 45... Kc7 {[%clk 0:00:13.6]} 46. f4
{[%clk 0:00:03.4]} 46... Rg3+ {[%clk 0:00:13.1]} 47. Kc2 {[%clk 0:00:02.9]}
47... exf4 {[%clk 0:00:13.7]} 48. Rf7+ {[%clk 0:00:03]} 48... Kc8 {[%clk
0:00:13.9]} 49. Rxf4 {[%clk 0:00:03.5]} 49... Re3 {[%clk 0:00:14.6]} 50. Rf6
{[%clk 0:00:02.4]} 50... Kd7 {[%clk 0:00:13.4]} 51. Rf7+ {[%clk 0:00:02.7]}
51... Kc8 {[%clk 0:00:13.6]} 52. Rf4 {[%clk 0:00:02.9]} 52... Kc7 {[%clk
0:00:11.6]} 53. Rh4 {[%clk 0:00:03.5]} 53... Kc8 {[%clk 0:00:11.8]} 54. Rg4
{[%clk 0:00:04.1]} 54... Kc7 {[%clk 0:00:12.2]} 55. Rh4 {[%clk 0:00:03.8]} 55...
Kc8 {[%clk 0:00:12.7]} 56. Rf4 {[%clk 0:00:03.3]} 56... Kc7 {[%clk 0:00:13.1]}
57. Rh4 {[%clk 0:00:03.3]} 1/2-1/2